Cogmind - Beta 13 X2 @@@ ROGUE MODE // 2024.01.24 @ 22:18:31 Player: Jezoensis Result: Destroyed by P-60 Hacker with Shock Rifle Performance ------------- Evolutions (4) 2000 Regions Visited (11) 2200 Robots Destroyed (106) 530 Value Destroyed (3416) 3416 Prototype IDs (22) 440 Alien Tech Used (0) 0 Bonus (423) 423 TOTAL SCORE: 9009 Bonus ------- High Alert Combat Kills 98 Follower Combat Kills 25 Met Data Miner 300 Cogmind --------- Core Integrity 0/850 Matter 10/300 Energy 2/100 System Corruption 0% Temperature Cool (95) Movement Hovering (60) Location -6/Factory Parts ------- > --- POWER (1) -------- (None) > --- PROPULSION (4) --- Gravmag Array Nuclear Pulse Thruster > --- UTILITY (7) ------ Enhanced Optical Array Improved Terrain Scanner Improved Terrain Scan Processor Melee Analysis Suite Weapon Cycler > --- WEAPON (3) ------- Gatling Laser > --- INVENTORY (5) ---- Compact Wheel Shock Absorption System Long-range Tractor Beam Plasma Cannon Gauss Rifle Peak State ------------ > --- POWER ------------ Light Fission Core > --- PROPULSION ------- Improved Medium Treads Improved Medium Treads Compact Wheel Compact Wheel > --- UTILITY ---------- Large Storage Unit Visual Processing Unit Improved Sensor Array Improved Signal Interpreter Advanced Terrain Scan Processor Improved Targeting Computer Weapon Cycler > --- WEAPON ----------- Heavy Particle Gun Advanced EMP Blaster Heavy Flail > --- INVENTORY -------- Compact Wheel Improved Heat Sink Compact Matter Pod Improved Terrain Scanner Medium Insulated Plating Hardlight Generator Long-range Tractor Beam Improved Field Recycling Unit Heavy Particle Gun Heavy Particle Gun Gauss Cannon Gauss Cannon Gauss Cannon [Rating: 51] Favorites ----------- Power Improved Ion Engine Engine Improved Ion Engine Power Core Light Fission Core Reactor Cold Fusion Reactor Propulsion Wheel Treads Armored Treads Leg Carbon-fiber Leg Wheel Wheel Hover Unit Gravmag Array Flight Unit Nuclear Pulse Thruster Utility Improved Terrain Scanner Device Improved Terrain Scanner Storage Large Storage Unit Processor Improved Signal Interpreter Protection Medium Insulated Plating Weapon Heavy Particle Gun Energy Gun Heavy Particle Gun Ballistic Gun Assault Rifle Ballistic Cannon Gauss Cannon Launcher Advanced EMP Blaster Special Weapon Mining Laser Impact Weapon Heavy Flail Build | -11 -10 -10 -9 -9 -8 -7 -7 -7 -7 -6 -6 ------- Run | Yrd Mat Min Mat Min Mat Fac Low Low Dat Pro Fac Slots Evolved 8 | . . . 2 . 2 2 . . . . 2 Power . | . . . . . . . . . . . . Propulsion 2 | . . . 1 . . . . . . . 1 Utility 5 | . . . 1 . 1 2 . . . . 1 Weapon 1 | . . . . . 1 . . . . . . Parts Attached 198 | 7 10 5 18 . 44 15 22 15 . 22 40 Power 8 | 1 1 . 1 . 1 . . 1 . 1 2 Engine 6 | 1 1 . 1 . 1 . . 1 . 1 . Core 1 | . . . . . . . . . . . 1 Reactor 1 | . . . . . . . . . . . 1 Propulsion 30 | 2 2 4 3 . 5 . 2 2 . 2 8 Treads 10 | . 1 2 1 . 2 . . . . . 4 Leg 1 | . . . . . . . . 1 . . . Wheel 17 | 2 1 2 2 . 3 . 2 1 . 2 2 Hover 1 | . . . . . . . . . . . 1 Flight 1 | . . . . . . . . . . . 1 Utility 94 | 2 1 . 8 . 14 11 14 9 . 16 19 Device 73 | 1 . . 6 . 12 7 12 9 . 14 12 Storage 4 | 1 1 . 1 . . . . . . . 1 Processor 10 | . . . 1 . 2 3 . . . . 4 Hackware . | . . . . . . . . . . . . Protection 7 | . . . . . . 1 2 . . 2 2 Artifact . | . . . . . . . . . . . . Weapon 66 | 2 6 1 6 . 24 4 6 3 . 3 11 Energy Gun 26 | 1 3 . 6 . 9 . . 2 . 2 3 Energy Cannon . | . . . . . . . . . . . . Ballistic Gun 8 | 1 . . . . 7 . . . . . . Ballistic Cannon 17 | . 2 1 . . 3 3 3 1 . . 4 Launcher 7 | . . . . . 1 . 3 . . 1 2 Special Weapon 1 | . 1 . . . . . . . . . . Impact Weapon 7 | . . . . . 4 1 . . . . 2 Slashing Weapon . | . . . . . . . . . . . . Piercing Weapon . | . . . . . . . . . . . . Special Melee Weapon . | . . . . . . . . . . . . Unidentified Prototypes 9 | . . . 3 . 4 . . . . . 2 Parts Lost 22 | . . 1 1 . 2 . . 1 . 3 14 Power 4 | . . . . . 1 . . . . 2 1 Propulsion 9 | . . 1 1 . 1 . . 1 . 1 4 Utility 4 | . . . . . . . . . . . 4 Weapon 5 | . . . . . . . . . . . 5 Highest Loss Streak 9 | . . 1 1 . 1 . . 1 . 3 9 To Critical Strikes . | . . . . . . . . . . . . Average Slot Usage (%) 92 | . 100 100 98 100 99 99 95 91 92 94 61 Engine 7 | . 14 14 11 11 8 7 7 7 7 6 . Treads 5 | . . 4 11 11 12 7 7 . . . 3 Leg 1 | . . . . . . . . . 7 7 . Wheel 14 | . 27 23 21 22 14 15 10 13 7 9 5 Device 13 | . 14 14 11 11 16 14 14 15 15 14 8 Storage 8 | . 14 14 11 11 9 7 7 7 7 7 2 Processor 16 | . . . 10 11 10 23 23 23 23 23 17 Energy Gun 10 | . 11 8 20 22 19 . . 5 15 18 4 Ballistic Gun 2 | . 14 14 . . 3 3 . . . . . Ballistic Cannon 5 | . 2 5 . . 2 12 19 9 . . 1 Launcher 2 | . . . . . . . . 7 7 4 6 Impact Weapon 1 | . . . . . 2 5 2 . . . 2 Naked Turns 9 | . . . . . . . . . . . 9 Heaviest Build 61 | 14 21 21 35 35 50 61 61 49 44 50 52 Greatest Support 60 | 20 20 20 26 20 43 22 28 44 28 32 60 Greatest Overweight (x) 3 | . 1 1 1 1 3 2 3 1 1 2 1 Average Overweight (x) . | . . . . 1 1 1 1 . 1 1 . Largest Inventory Capacity 15 | 8 10 10 15 15 15 15 15 15 15 15 15 Average Capacity 13 | 7 9 10 10 15 15 15 15 15 15 15 9 Most Carried 15 | 7 10 10 11 14 15 15 15 15 15 15 15 Average Carried 12 | 3 9 9 9 12 14 14 14 14 15 14 8 Final Capacity 15 | 8 10 10 15 15 15 15 15 15 15 15 5 Final Carried 15 | 7 10 9 11 14 15 15 14 15 15 14 5 Class Distribution -------------------- 40% | Scavenger-Skirmisher 30% | Mutant 17% | Scavenger-Assassin 6% | Skirmisher Dominant Class ---------------- Mutant | -10/Materials Mutant | -10/Mines Mutant | -9/Materials Mutant | -9/Mines Scavenger-Skirmisher | -8/Materials Scavenger-Assassin | -7/Factory Scavenger-Skirmisher | -7/Lower Caves Scavenger-Skirmisher | -7/Lower Caves Scavenger-Skirmisher | -7/Data Miner Scavenger-Skirmisher | -6/Proximity Caves Mutant | -6/Factory Resources | -11 -10 -10 -9 -9 -8 -7 -7 -7 -7 -6 -6 ----------- Run | Yrd Mat Min Mat Min Mat Fac Low Low Dat Pro Fac Matter Collected 2846 | 230 100 48 420 . 460 32 639 269 . 210 438 Remotely 733 | . . . . . . 32 345 86 . 80 190 Salvage Created 4146 | 39 129 111 1071 . 767 . 496 408 . 575 550 Parts 163 | 6 6 8 45 . 35 . 15 14 . 15 19 Haulers Intercepted 5 | . . . 2 . 1 . . . . . 2 Recyclers Shooed 1 | 1 . . . . . . . . . . . Parts Field Recycled 29 | . . . . . . 13 10 . . . 6 Retrieved Matter 412 | . . . . . . 174 42 . . . 196 Parts Self-Destructed 26 | . . . . . . . 10 7 . 9 . Prevented 10 | . . . . . . . 3 5 . 2 . Kills | -11 -10 -10 -9 -9 -8 -7 -7 -7 -7 -6 -6 ------- Run | Yrd Mat Min Mat Min Mat Fac Low Low Dat Pro Fac Combat Hostiles Destroyed 79 | . 4 4 19 . 14 1 10 8 . 8 11 Guns 38 | . 3 1 18 . 12 . . . . 3 1 Cannons 13 | . 1 3 . . . 1 3 4 . . 1 AOE 22 | . . . . . . . 7 4 . 4 7 Classes Destroyed 15 | 1 1 1 7 . 1 . 3 1 . . . Worker 4 | . . . 1 . 2 . . . . . 1 Builder 6 | . . . 4 . . . . . . . 2 Tunneler 3 | 2 . 1 . . . . . . . . . Hauler 5 | . . . 2 . 1 . . . . . 2 Recycler 2 | . . . 1 . . . . . . 1 . Minesweeper 1 | . . . . . . . 1 . . . . Operator 1 | . . . . . 1 . . . . . . Watcher 5 | . . . 2 . 1 . . . . 1 1 Swarmer 18 | . . 3 4 . 3 . 4 . . 4 . Grunt 40 | . 4 1 12 . 7 . 4 5 . 2 5 Brawler 2 | . . . 1 . . . . 1 . . . Duelist 3 | . . . . . . . 1 1 . . 1 Sentry 10 | . . . 2 . 4 1 . . . 2 1 Hunter 5 | . . . . . . . . 1 . . 4 Programmer 1 | . . . . . . . 1 . . . . Decomposer 1 | . . . . . . . 1 . . . . Packrat 1 | . . . . . . . 1 . . . . Best Kill Streak 10 | 2 2 5 10 . 4 1 4 4 . 3 7 Combat Bots Only 6 | . 2 4 5 . 4 1 4 4 . 3 6 Max Kills in Single Turn 3 | 1 1 1 2 . 1 1 3 3 . 2 2 Gunslinging 1 | . . . 1 . . . . . . . . Exploded 3 | . . . . . . . 3 3 . 2 2 Melee . | . . . . . . . . . . . . Uniques/NPCs Destroyed . | . . . . . . . . . . . . Combat | -11 -10 -10 -9 -9 -8 -7 -7 -7 -7 -6 -6 -------- Run | Yrd Mat Min Mat Min Mat Fac Low Low Dat Pro Fac Hostile Shots Fired 624 | . 26 29 69 . 90 54 14 22 . 67 253 Missed 202 | . 9 9 21 . 33 18 5 7 . 23 77 Damage Taken 5727 | . 220 181 619 . 778 262 187 333 . 490 2657 Core 1282 | . 81 48 112 . 92 10 . . . 82 857 Absorbed by Shields 80 | . . . . . . . . . . 24 56 Ignored by Resistances 3 | . . . . . . . 3 . . . . Core Remaining (%) 77 | 100 . 48 . 72 83 . . . . 86 . Volleys Fired 227 | 14 20 10 53 . 41 7 12 13 . 24 33 Largest 3 | 2 2 2 2 . 3 3 3 2 . 3 3 Hottest 181 | 60 100 55 126 . 181 144 144 96 . 165 158 Shots Fired 479 | 28 36 19 106 . 120 19 24 19 . 55 53 Gun 337 | 28 24 9 106 . 111 . . . . 48 11 Cannon 100 | . 9 10 . . 9 19 18 12 . . 23 Launcher 39 | . . . . . . . 6 7 . 7 19 Special 3 | . 3 . . . . . . . . . . Kinetic 163 | 14 25 19 . . 33 19 18 12 . . 23 Thermal 277 | 14 11 . 106 . 87 . . . . 48 11 Explosive 15 | . . . . . . . . . . . 15 Electromagnetic 24 | . . . . . . . 6 7 . 7 4 Robot Hit Streak 17 | 3 5 2 17 . 13 11 5 6 . 12 8 Robot Miss Streak 8 | 3 3 3 2 . 3 4 6 2 . 8 5 Penetration Max . | . . . . . . . . . . . . Secondary Targets 4 | . . . 2 . 2 . . . . . . Max Gunslinging Chain 1 | . . . 1 . 1 . . . . . . Shots Hit Robots 295 | 15 17 9 74 . 83 11 13 10 . 29 34 Core Hits 155 | 2 7 5 32 . 29 2 13 13 . 21 31 Critical Kills 2 | . . . . . 1 . . . . . 1 Critical Parts Destroyed 3 | . . . . . 2 . . . . . 1 Critical Strikes 19 | . 1 . 2 . 7 2 1 . . . 6 Burn 7 | . . . 2 . 4 . . . . . 1 Destroy 3 | . . . . . 3 . . . . . . Blast 7 | . 1 . . . . 2 1 . . . 3 Smash 2 | . . . . . . . . . . . 2 Melee Attacks 29 | . . . . . 7 9 3 . . . 10 Impact 29 | . . . . . 7 9 3 . . . 10 Slashing . | . . . . . . . . . . . . Piercing . | . . . . . . . . . . . . Sneak Attacks 5 | . . . . . 1 1 3 . . . . Combat Hostiles . | . . . . . . . . . . . . Follow-up Attacks . | . . . . . . . . . . . . Damage Inflicted 8937 | 177 238 143 1386 . 1746 331 897 778 . 1007 2234 Guns 4023 | 177 148 71 1386 . 1535 . . . . 472 234 Cannons 1207 | . 90 72 . . 61 274 282 229 . . 199 Explosions 2858 | . . . . . . . 339 549 . 535 1435 Melee 846 | . . . . . 147 57 276 . . . 366 Ramming 3 | . . . . . 3 . . . . . . Kinetic 1830 | 98 182 143 . . 423 274 282 229 . . 199 Thermal 3563 | 79 56 . 1386 . 1173 . 57 65 . 513 234 Explosive 1264 | . . . . . . . . . . . 1264 Electromagnetic 1431 | . . . . . . . 282 484 . 494 171 Impact 846 | . . . . . 147 57 276 . . . 366 Slashing . | . . . . . . . . . . . . Piercing . | . . . . . . . . . . . . Highest Corruption 5 | . 1 1 . . 5 . . . . . . Average Corruption 3 | . 1 1 . . 4 . . . . . . Corruption Purged . | . . . . . . . . . . . . Corruption Blocked . | . . . . . . . . . . . . Effects 27 | . 5 2 . . 20 . . . . . . Message Errors 8 | . 2 . . . 6 . . . . . . Matter Fused 3 | . . 1 . . 2 . . . . . . Heat Flow Errors 4 | . 1 . . . 3 . . . . . . Energy Discharges 3 | . 1 . . . 2 . . . . . . Data Loss (minor) 3 | . . . . . 3 . . . . . . Data Loss (major) 1 | . . . . . 1 . . . . . . Misfires 1 | . . . . . 1 . . . . . . Weapon Failures 4 | . 1 1 . . 2 . . . . . . Overload Shots . | . . . . . . . . . . . . Overflow Damage 327 | . . . . . 11 . 222 . . 16 78 Projectiles 15 | . . . . . 11 . . . . . 4 Explosions 16 | . . . . . . . . . . 16 . Melee 296 | . . . . . . . 222 . . . 74 Knockbacks 13 | . 3 . . . . 1 3 2 . . 4 Impact 2 | . . . . . . . 1 . . . 1 Kinetic 11 | . 3 . . . . 1 2 2 . . 3 Secondary . | . . . . . . . . . . . . Self-Inflicted Damage 11 | . . . . . . . . 11 . . . Shots 1 | . . . . . . . . 1 . . . Rammed 2 | . . . . . 2 . . . . . . Targets Rammed 2 | . . . . . 2 . . . . . . Kicked . | . . . . . . . . . . . . Crushed . | . . . . . . . . . . . . Highest Temperature 440 | . 256 6 271 . 440 270 326 . . 288 305 Average Temperature 95 | . 44 3 90 . 94 173 156 . . 76 117 Received Heat Transfer 1482 | . 120 36 213 . 387 72 45 81 . 103 425 Effects 3 | . . . . . 1 . . . . . 2 Energy Bleed 1 | . . . . . 1 . . . . . . Interference 2 | . . . . . . . . . . . 2 Siege Activations . | . . . . . . . . . . . . Robots Corrupted 2 | . . . . . . . . . . 1 1 Combat Hostiles 1 | . . . . . . . . . . 1 . Parts Fried 11 | . . . . . . . 4 4 . . 3 Impact Corruptions 9 | . . . . . . . 6 . . . 3 Robots Melted 3 | . . . 1 . 2 . . . . . . Combat Hostiles 3 | . . . 1 . 2 . . . . . . Parts Melted 27 | . . . 15 . 9 . . . . 3 . Heat Transferred 7732 | 175 125 . 3108 . 2627 . 100 100 . 975 522 Parts Sabotaged . | . . . . . . . . . . . . Parts Stolen . | . . . . . . . . . . . . Parts Stripped . | . . . . . . . . . . . . Power Chain Reactions 5 | . . . . . . . 3 1 . 1 . Missiles Intercepted . | . . . . . . . . . . . . Alert | -11 -10 -10 -9 -9 -8 -7 -7 -7 -7 -6 -6 ------- Run | Yrd Mat Min Mat Min Mat Fac Low Low Dat Pro Fac Peak Influence 619 | 10 292 101 619 118 496 290 . . . . 331 Initial 196 | . 6 17 39 118 45 196 . . . . 69 Average 217 | 2 133 35 316 118 331 223 . . . . 146 Maximum Alert Level 2 | . 1 . 2 . 2 1 . . . . 1 Low Security (%) 48 | 100 82 100 32 100 11 28 . . . . 67 Level 1 38 | . 17 . 21 . 62 71 . . . . 32 Level 2 13 | . . . 45 . 25 . . . . . . Level 3 . | . . . . . . . . . . . . Level 4 . | . . . . . . . . . . . . Level 5 . | . . . . . . . . . . . . High Security . | . . . . . . . . . . . . Max Security . | . . . . . . . . . . . . Squads Dispatched 15 | . 4 . 1 . 4 2 . . . . 4 Investigation 11 | . 4 . . . 4 2 . . . . 1 Extermination 1 | . . . . . . . . . . . 1 Reinforcement 3 | . . . 1 . . . . . . . 2 Assault . | . . . . . . . . . . . . Garrison . | . . . . . . . . . . . . Intercept . | . . . . . . . . . . . . Searches Triggered . | . . . . . . . . . . . . Construction Impeded 1 | . . . . . . . . . . . 1 Haulers Reinforced 1 | . . . . . . . . . . . 1 Active Scanning Responses . | . . . . . . . . . . . . Cargo Convoy Interrupts . | . . . . . . . . . . . . Stealth | -11 -10 -10 -9 -9 -8 -7 -7 -7 -7 -6 -6 --------- Run | Yrd Mat Min Mat Min Mat Fac Low Low Dat Pro Fac Distress Signals 12 | . 2 . 5 . 2 . . . . 1 2 Communications Jammed . | . . . . . . . . . . . . Distress Signals . | . . . . . . . . . . . . Times Spotted 136 | . 22 5 31 . 20 1 6 8 . 18 25 Peak Tracking Total 13 | . 7 4 9 . 6 1 3 4 . 5 13 Tactical Retreats 15 | . 5 1 . . 4 . . . . 1 4 Traps | -11 -10 -10 -9 -9 -8 -7 -7 -7 -7 -6 -6 ------- Run | Yrd Mat Min Mat Min Mat Fac Low Low Dat Pro Fac Traps Triggered 2 | . . . . . . 2 . . . . . Indirectly . | . . . . . . . . . . . . Trap Hack Attempts . | . . . . . . . . . . . . Triggered . | . . . . . . . . . . . . Disarmed . | . . . . . . . . . . . . Reprogrammed . | . . . . . . . . . . . . Reused 3 | . . . . . 2 . . . . 1 . Traps Extracted . | . . . . . . . . . . . . Installed 4 | . . . . . 3 . . . . 1 . Triggered 3 | . . . . . 2 . . . . 1 . Most Traps Carried 3 | . . . . 3 3 . . . . 1 . Machines | -11 -10 -10 -9 -9 -8 -7 -7 -7 -7 -6 -6 ---------- Run | Yrd Mat Min Mat Min Mat Fac Low Low Dat Pro Fac Machines Disabled 3 | . . . 1 . . . . . . . 2 Max in Single Turn 1 | . . . 1 . . . . . . . 1 Machines Repaired . | . . . . . . . . . . . . Machines Dismantled . | . . . . . . . . . . . . Machines Sabotaged . | . . . . . . . . . . . . Overloaded Fab Kills . | . . . . . . . . . . . . Hacking | -11 -10 -10 -9 -9 -8 -7 -7 -7 -7 -6 -6 --------- Run | Yrd Mat Min Mat Min Mat Fac Low Low Dat Pro Fac Machines Accessed 28 | . 8 . 3 . 6 3 . 2 3 1 2 Terminals 18 | . 7 . 3 . 5 . . . . 1 2 Fabricators 1 | . . . . . . 1 . . . . . Repair Stations . | . . . . . . . . . . . . Recycling Units 3 | . 1 . . . 1 1 . . . . . Scanalyzers . | . . . . . . . . . . . . Garrison Access 1 | . . . . . . 1 . . . . . Total Hacks 108 | . 28 . 10 . 19 5 . 10 25 2 9 Successful 67 | . 12 . 3 . 7 3 . 10 25 1 6 Failed 39 | . 15 . 6 . 12 2 . . . 1 3 Catastrophic 9 | . 5 . 1 . 1 2 . . . . . Database Lockouts 2 | . 1 . 1 . . . . . . . . Manual 50 | . 19 . 7 . 17 3 . . . . 4 Terminals 66 | . 27 . 10 . 18 . . . . 2 9 Fabricators 3 | . . . . . . 3 . . . . . Repair Stations . | . . . . . . . . . . . . Recycling Units 3 | . 1 . . . 1 1 . . . . . Scanalyzers . | . . . . . . . . . . . . Garrison Access 1 | . . . . . . 1 . . . . . Terminal Hacks 53 | . 8 . 3 . 3 . . 10 25 1 3 Record 15 | . . . . . . . . 9 6 . . Part Schematic 10 | . . . . . . . . . 10 . . Robot Schematic 6 | . . . . . . . . . 6 . . Robot Analysis 6 | . 2 . 2 . 2 . . . . . . Prototype ID Bank 5 | . 2 . . . . . . . 3 . . Open Door 2 | . . . . . . . . 1 . 1 . Branch Access Points 2 | . 1 . . . . . . . . . 1 Terminal Index 1 | . . . . . 1 . . . . . . Recycling Unit Index 1 | . 1 . . . . . . . . . . Unreport Threat 5 | . 2 . 1 . . . . . . . 2 Fabricator Hacks 1 | . . . . . . 1 . . . . . Network Status 1 | . . . . . . 1 . . . . . Repair Station Hacks . | . . . . . . . . . . . . Recycling Unit Hacks . | . . . . . . . . . . . . Scanalyzer . | . . . . . . . . . . . . Garrison Access Hacks . | . . . . . . . . . . . . Unauthorized Hacks 13 | . 4 . . . 4 2 . . . . 3 Terminals 9 | . 3 . . . 3 . . . . . 3 Track 3 | . 2 . . . 1 . . . . . . Botnet 4 | . 1 . . . 1 . . . . . 2 Operators 2 | . . . . . 1 . . . . . 1 Fabricators 1 | . . . . . . 1 . . . . . Fabnet 1 | . . . . . . 1 . . . . . Repair Stations . | . . . . . . . . . . . . Recycling Units 3 | . 1 . . . 1 1 . . . . . Tunnel 3 | . 1 . . . 1 1 . . . . . Scanalyzers . | . . . . . . . . . . . . Garrison Access . | . . . . . . . . . . . . Data Cores Recovered 1 | . . . . . 1 . . . . . . Used . | . . . . . . . . . . . . Hacking Detections 20 | . 7 . 3 . 5 2 . . . 1 2 Full Trace Events 12 | . 5 . 2 . 3 1 . . . . 1 Feedback Events 2 | . 1 . . . 1 . . . . . . Corruption 2 | . 1 . . . 1 . . . . . . Feedback Blocked . | . . . . . . . . . . . . Robot Schematics Acquired 6 | . . . . . . . . . 6 . . Robots Built . | . . . . . . . . . . . . Authchips . | . . . . . . . . . . . . Time . | . . . . . . . . . . . . Total Robot Build Rating . | . . . . . . . . . . . . Part Schematics Acquired 10 | . . . . . . . . . 10 . . Parts Built . | . . . . . . . . . . . . Authchips . | . . . . . . . . . . . . Time . | . . . . . . . . . . . . Total Part Build Rating . | . . . . . . . . . . . . Parts Repaired . | . . . . . . . . . . . . Time . | . . . . . . . . . . . . Parts Recycled . | . . . . . . . . . . . . Recycled Matter . | . . . . . . . . . . . . Retrieved Matter . | . . . . . . . . . . . . Retrieved Components . | . . . . . . . . . . . . Parts Scanalyzed . | . . . . . . . . . . . . Part Schematics Acquired . | . . . . . . . . . . . . Parts Damaged . | . . . . . . . . . . . . Bothacking | -11 -10 -10 -9 -9 -8 -7 -7 -7 -7 -6 -6 ------------ Run | Yrd Mat Min Mat Min Mat Fac Low Low Dat Pro Fac Used RIF Installer . | . . . . . . . . . . . . Robots Hacked . | . . . . . . . . . . . . Non-combat . | . . . . . . . . . . . . Combat . | . . . . . . . . . . . . Robot Hacks Applied . | . . . . . . . . . . . . Relay Couplers Released . | . . . . . . . . . . . . Fabnet Peak Effective % 3 | . . . . . . . . . . 3 3 Robots Rewired . | . . . . . . . . . . . . Allies Hacked . | . . . . . . . . . . . . Hacks Repelled . | . . . . . . . . . . . . Allies | -11 -10 -10 -9 -9 -8 -7 -7 -7 -7 -6 -6 -------- Run | Yrd Mat Min Mat Min Mat Fac Low Low Dat Pro Fac Total Allies 5 | . . 3 . . . . . 2 . . . Largest Group 3 | . . 3 . . . . . 2 2 . . Highest-Rated Group 56 | . . 40 . . . . . 56 56 . . Highest-Rated Ally 31 | . . 16 . . . . . 31 31 . . Total Orders . | . . . . . . . . . . . . Ally Attacks 14 | . . 14 . . . . . . . . . Total Damage 156 | . . 156 . . . . . . . . . Kills 1 | . . 1 . . . . . . . . . Allies Corrupted . | . . . . . . . . . . . . Allies Melted . | . . . . . . . . . . . . Intel | -11 -10 -10 -9 -9 -8 -7 -7 -7 -7 -6 -6 ------- Run | Yrd Mat Min Mat Min Mat Fac Low Low Dat Pro Fac Robot Analysis Total 6 | . 2 . 2 . 2 . . . . . . Derelict Logs Recovered 4 | . . 1 . 1 . . 1 1 . . . Drone Launches . | . . . . . . . . . . . . Drone Recoveries . | . . . . . . . . . . . . Exploration | -11 -10 -10 -9 -9 -8 -7 -7 -7 -7 -6 -6 ------------- Run | Yrd Mat Min Mat Min Mat Fac Low Low Dat Pro Fac Turns Passed 4818 | 91 441 106 456 161 751 461 491 560 87 625 588 Spaces Moved 3682 | 45 430 85 272 167 458 333 360 456 76 434 566 Core 105 | 18 . . . . . . . . . . 87 Treads 59 | . . . . . 43 . . . . . 16 Legs . | . . . . . . . . . . . . Wheels 3184 | 27 430 85 272 167 415 333 360 456 76 434 129 Hover 334 | . . . . . . . . . . . 334 Flight . | . . . . . . . . . . . . Fastest Speed 50 | 50 80 80 90 95 95 100 115 100 115 115 50 Average Speed 98 | 68 80 82 93 95 108 110 115 109 115 115 73 Slowest Speed 165 | 80 95 95 95 95 165 115 145 115 115 130 160 Overloaded Moves . | . . . . . . . . . . . . Propulsion Burnouts . | . . . . . . . . . . . . Robots Hopped . | . . . . . . . . . . . . Cave-ins Triggered . | . . . . . . . . . . . . Exploration Rate (%) 44 | 3 91 20 39 47 43 8 64 75 71 56 20 Regions Visited 11 Branch Regions 6 Pre-discovered Areas 6 | . 1 . . 1 1 1 . 1 1 . . Known Exits Taken 7 | . 1 . . . 1 1 1 1 1 1 . Unknown Exits Taken 4 | 1 . 1 1 1 . . . . . . . Scrap Searched 19 | . . . . 1 . . 3 12 . 3 . Spaces Dug 14 | . 1 . . . 6 7 . . . . . Terrain Destroyed 188 | . 3 . . . 13 21 7 7 . . 137 Melee 13 | . . . . . 6 7 . . . . . Projectile 35 | . 3 . . . 6 14 2 1 . . 9 AOE 139 | . . . . . . . 5 6 . . 128 Terrain Rammed . | . . . . . . . . . . . . Walls Destroyed . | . . . . . . . . . . . . Machines Disabled . | . . . . . . . . . . . . Actions | -11 -10 -10 -9 -9 -8 -7 -7 -7 -7 -6 -6 --------- Run | Yrd Mat Min Mat Min Mat Fac Low Low Dat Pro Fac Total 4339 | 74 482 99 365 169 606 395 403 492 75 510 669 Wait 66 | . 10 . 4 . 9 13 3 . . 21 6 Move 3671 | 44 429 84 271 166 457 332 359 455 75 433 566 Hop . | . . . . . . . . . . . . Pick Up 64 | 9 7 . 9 3 17 6 . 4 . 3 6 Fast Attach 41 | 5 1 . 5 . 8 1 1 1 . 3 16 Attach 31 | 2 . 1 3 . 6 3 2 2 . 3 9 Detach 8 | . 1 . . . 5 . 1 . . . 1 Swap 126 | . 9 4 10 . 30 11 19 12 . 16 15 Drop 60 | . 5 . 10 . 21 5 3 3 . 6 7 Fire 227 | 14 20 10 53 . 41 7 12 13 . 24 33 Melee 29 | . . . . . 7 9 3 . . . 10 Ram . | . . . . . . . . . . . . Kick . | . . . . . . . . . . . . Crush 2 | . . . . . 2 . . . . . . Escape Stasis 8 | . . . . . . 8 . . . . . Rewire 2 | . . . . . . . . 2 . . . Trap 4 | . . . . . 3 . . . . 1 . Miscellaneous . | . . . . . . . . . . . . Route ------- -11/Scrapyard -10/Materials (discovered 3 exits: *Mat x2 / *Min) -10/Mines -9/Materials (discovered 2 exits: *Mat / [*Min]) -9/Mines -8/Materials -7/Factory (discovered 2 exits: Sto / *Low) -7/Lower Caves -7/Lower Caves (discovered 2 exits: *Fac / *Dat) -7/Data Miner -6/Proximity Caves -6/Factory (discovered 3 exits: *Fac / Low x2) History --------- Turn | Location | Event 12 | -11/Scrapyard | Discovered new exit (range 16) 92 | -11/Scrapyard | Entered Materials 239 | -10/Materials | Discovered new exit (range 15) 308 | -10/Materials | Build established: Mutant 335 | -10/Materials | Discovered new exit (range 15) 358 | -10/Materials | Central database locked down 410 | -10/Materials | Identified exit to Mines 424 | -10/Materials | Discovered new exit (range 15) 533 | -10/Materials | Entered Mines 538 | -10/Mines | Assisted by bots powering up and referring to "LRC-V3" 561 | -10/Mines | Met a Derelict bent on vengeance 621 | -10/Mines | Core integrity fell below 50% 630 | -10/Mines | Discovered new exit (range 11) 639 | -10/Mines | Entered Materials 639 | -9/Materials | Evolved 2 slots: Propulsion x1, Utility x1 753 | -9/Materials | Discovered new exit (range 12) 1030 | -9/Materials | Discovered new exit (range 16) 1088 | -9/Materials | Central database locked down 1095 | -9/Materials | Entered Mines 1189 | -9/Mines | Learned location of Zion (-6) 1194 | -9/Mines | Found a hidden stash of uninstalled traps 1238 | -9/Mines | Discovered new exit (range 7) 1256 | -9/Mines | Entered Materials 1256 | -8/Materials | Evolved 2 slots: Utility x1, Weapon x1 1935 | -8/Materials | Discovered new exit (range 14) 2002 | -8/Materials | Identified exit to Factory 2007 | -8/Materials | Entered Factory 2007 | -7/Factory | Evolved 2 slots: Utility x2 2008 | -7/Factory | Identified exit to Storage 2194 | -7/Factory | Discovered new exit (range 15) 2209 | -7/Factory | Identified exit to Lower Caves 2468 | -7/Factory | Entered Lower Caves 2507 | -7/Lower Caves | Learned 8 Factory zone layouts 2931 | -7/Lower Caves | Build established: Scavenger-Skirmisher 2935 | -7/Lower Caves | Discovered new exit (range 14) 2958 | -7/Lower Caves | Identified exit to Lower Caves 2959 | -7/Lower Caves | Entered another Lower Caves area 2971 | -7/Lower Caves | Discovered new exit (range 11) 3275 | -7/Lower Caves | A Commander dispatched an escort 3287 | -7/Lower Caves | Learned location of 1 exit from Research 3287 | -7/Lower Caves | Learned Factory emergency access door positions 3287 | -7/Lower Caves | Learned Factory stockpile data 3287 | -7/Lower Caves | Learned Extension stockpile data 3287 | -7/Lower Caves | Learned Armory security intel 3287 | -7/Lower Caves | Learned Research garrison access intel 3312 | -7/Lower Caves | Discovered new exit (range 13) 3501 | -7/Lower Caves | Identified exit to Data Miner 3519 | -7/Lower Caves | Entered Data Miner 3519 | -7/Data Miner | Accompanied by 2 allies 3519 | -7/Data Miner | Discovered new exit (range 7) 3520 | -7/Data Miner | Commander's escort returned to base 3520 | -7/Data Miner | Commander's escort returned to base 3539 | -7/Data Miner | Met Data Miner 3562 | -7/Data Miner | Learned location of Section 7 (-2) 3562 | -7/Data Miner | Acquired the access code to Warlord's prototype stash 3578 | -7/Data Miner | Received God Mode back door access code from Data Miner 3605 | -7/Data Miner | Identified exit to Proximity Caves 3606 | -7/Data Miner | Entered Proximity Caves 3950 | -6/Proximity Caves | Attracted the attention of an 0b10 checkpoint 4100 | -6/Proximity Caves | Snuck into a huge 0b10 base via the rear entrance 4228 | -6/Proximity Caves | Discovered new exit (range 3) 4229 | -6/Proximity Caves | Identified exit to Factory 4231 | -6/Proximity Caves | Entered Factory 4231 | -6/Factory | Evolved 2 slots: Propulsion x1, Utility x1 4232 | -6/Factory | Identified exit to Factory 4261 | -6/Factory | Lost 3 parts (2p1n) 4488 | -6/Factory | Released all parts (8) 4512 | -6/Factory | Core integrity fell below 50% 4524 | -6/Factory | Lost 9 parts (1p4n3u1w) 4561 | -6/Factory | Core integrity fell below 20% 4805 | -6/Factory | Identified exit to Lower Caves 4819 | -6/Factory | Destroyed by P-60 Hacker with Shock Rifle Last Messages --------------- 04773_ The unstable cave ceiling collapses. 04805_ Connecting with Terminal... >>Alert(Purge) Purged threat record, alert level lowered. >>Alert(Purge) Purged threat record, alert level lowered. >>Trojan(Botnet) Trojan loaded successfully. Testing... Terminal linked with 1 system. Awaiting botnet instructions. >>Access(Branch) Found 2 branch access points: (188,60) Lower Caves (149,195) Lower Caves Map updated. 04805_ ALERT: Suspicious activity at Terminal F007. Dispatching Investigation squad. 04810_ Hvy. Rocket Launcher destroyed. 04819_ P-60 Hacker heat damages Gravmag System. Map ----- +----------------------------------------------------+ | ??????????????# = #????? ???? | | ?????????????### #???????+?? | | ???????#?????# # [ #?????? ??? | | ?????????????## # [[ #?????????? | | ??????????????# # [[ #?????????? | | ??????????????# # #??????"??? | | ??????????????### # #??#??????? | | ????????????????########### #?????????? | | ????????????#???????????#############+###????????? | | ???????????#????????????# #????????? | | ????????????????????????#" """ """ """ #????????? | | ????????????????????????#" """ """ """ #????????? | | ????????????????????????#" """ """ """ #??# | | ????????????????????????#T #??# | | ????????????????????????#" """ """ """ #??####### | | ?????????????????????#??#" """ """ """ #????????? | | ????????????????????????#" """ """ """ #????????? | | ????????????????????????# #????????? | | ???????????????????????## ########## | | ????????????????????????#/##########+#### | | ????????????????????????#p#????# | | ????????????????????????# #????# | | ????????????????????????# #????# | | ????????????????????????# #????# < | | ????????????????????????# #????# | | ??????????????????#######@###### | | ??????????????????# # | | ??????????????????# """ [ # ## | | ??????????????????# "T" !# ######+#### | | ??????????????????# * # # | | ??????????????????# # # | | ??????????????????# """"""""" + # | | ??????????????????# # / | | ??????????????????# """"""""" # # | | ??????????????????# # # | | ??????????????????# """"""""" # # | | ??????????????????# # # | | ??????????????????# # # | | ??????????????????############## # | | ???????????????????????????????# # | | ???????????????????????????????# # | | ???????????????????????????????# ##+####+### | | ???????????????????????????????# # | | ???????????????????????????????# # """ | | ??????????????????????????????## # """ | | ??????????????????????????????# # """ | | ??????????????????????????????#T # | | ??????????????????????????????## ###+####### | | ???????????????????????????????# | | ??????????????????????????????## | +----------------------------------------------------+ Best States ------------- Heat Dissipation 53 Energy Generation 18 Energy Capacity 290 Matter Stores 300 Matter Capacity 300 Sight Range 22 Robot Scan Range 15 Terrain Scan Range 16 Terrain Scan Density 210 Additional Mass Support 12 Armor Coverage 225 Resistance: EM 20 Weapon Cycling 15 Evasion (%) 53 Targeting Accuracy 6 Melee Accuracy 5 Recoil Reduction 2 Item Schematics ----------------- Combat Drone Bay | -7/Data Miner | Free Lgt. Regenerative Plating | -7/Data Miner | Free Cld. Cesium-ion Thruster | -7/Data Miner | Free Exp. Targeting Computer | -7/Data Miner | Free Imp. Heavy Laser | -7/Data Miner | Free Nuclear Pulse Array | -7/Data Miner | Free Imp. Transmission Jammer | -7/Data Miner | Free Smartbomb Launcher | -7/Data Miner | Free Matter Compressor | -7/Data Miner | Free Linear Gravjet | -7/Data Miner | Free Robot Schematics ------------------ A-15 Conveyor | -7/Data Miner | Free L-41 Fighter | -7/Data Miner | Free S-27 Virus | -7/Data Miner | Free Y-54 Guardian | -7/Data Miner | Free B-48 Gladiator | -7/Data Miner | Free H-66 Slayer | -7/Data Miner | Free Fabricated ------------ Nothing Alien Tech Used ----------------- None Achievements -------------- None Challenges ------------ None Game ------ Seed TeslaUtilityRefractor Manual? 0 Play Time 01:10:48 Cumulative 1001.3 hours Start 2024.01.23 @ 22:06:48 End 2024.01.24 @ 22:18:31 Sessions 5 Manual Loads 0 Difficulty Rogue Special Mode None Game No. 509 Rogue 382 Adventurer 125 Explorer 2 Win Type - Total 119 Types 93/9/8/3/3/0/0/2/1 Lore% 81 Gallery% 89 Achievement% 83 Wizard Run 0 Options --------- ASCII 0 Keyboard 1 Movement Numpad Keybinds 0 Fullscreen 1 Font 36/TerminusFine Map View 83x50 Zoom Use 0% Tactical HUD 1 Map Filters NONE Filters NONE Steam 1 RUN: 97ff1a7a-d4cc-4432-a8b8-9acf7e6a2fe5